bitfinex-derivatives/quotes_BTCF0:USTF0_20251207
["timestamp","ask_amount","ask_price","bid_price","bid_amount"]
[1765147294096,0.06167,90054.0,90053.0,0.0732335]
[1765147294686,0.07967,90054.0,90053.0,0.0742335]
[1765147295396,0.07967,90054.0,90053.0,0.0121036]
[1765147295591,0.018,90054.0,90053.0,0.0742336]
[1765147295793,0.00016655,90060.0,90059.0,0.0732329]
[1765147297403,0.02016655,90060.0,90059.0,0.0752329]
[1765147299294,0.00016655,90060.0,90059.0,0.0742329]
[1765147300785,0.0111004,90080.0,90070.0,0.0151]
[1765147300986,0.0110995,90087.0,90071.0,0.0111013]
[1765147301192,0.0110995,90087.0,90070.0,0.0151]
[1765147301488,0.0110995,90087.0,90078.0,0.0732305]
[1765147301489,0.06167,90079.0,90078.0,0.0732305]
[1765147301685,0.03109,90079.0,90078.0,0.0732305]
[1765147303002,0.03809,90079.0,90078.0,0.0732305]
[1765147303497,0.03809,90079.0,90070.0,0.0151]
[1765147303498,0.06485,90071.0,90070.0,0.0613]
[1765147303700,0.06485,90071.0,90069.0,0.00016655]
[1765147303701,0.08067,90070.0,90069.0,0.00016655]
[1765147303904,0.06485,90051.0,90050.0,0.00012961]
[1765147304404,0.06485,90051.0,90033.0,0.09029841]
[1765147304593,0.0759539,90051.0,90042.0,0.0111049]
[1765147305395,9.128e-05,90050.0,90042.0,0.0111049]
[1765147305603,0.06494128,90050.0,90049.0,0.02958]
[1765147306099,0.06494128,90050.0,90049.0,0.0613]
[1765147310196,9.128e-05,90050.0,90042.0,0.03980024]
[1765147310404,0.06485,90042.0,90037.0,0.07118403]
[1765147310600,0.06485,90038.0,90037.0,0.00016655]
[1765147310900,0.06494517,90038.0,90037.0,0.00016655]
[1765147311998,0.06485,90030.0,90029.0,0.03975476]
[1765147312300,0.06485,90017.0,90015.0,0.03975476]
[1765147312500,0.03121,90008.0,90007.0,0.11216396]
[1765147312702,0.03121,90008.0,90007.0,0.0724092]
[1765147312898,0.06485,90008.0,90007.0,0.0724092]
[1765147313107,0.06485,90007.0,90006.0,0.00027776]
[1765147315603,0.07085,90007.0,90006.0,0.00027776]
[1765147316515,0.06675,89999.0,89998.0,0.00016665]
[1765147318501,0.06975,89999.0,89998.0,0.00016665]
[1765147319403,0.06675,89983.0,89982.0,0.0767723]
[1765147320206,0.06675,89983.0,89982.0,0.06566]
[1765147320410,0.06675,89979.0,89978.0,0.0449628]
[1765147320611,0.06675,89979.0,89978.0,0.0767728]
[1765147321310,0.06675,89975.0,89974.0,0.00016665]
[1765147321510,0.0778633,89975.0,89974.0,0.00016665]
[1765147322311,0.06675,89967.0,89961.0,0.05]
[1765147322515,0.06684291,89967.0,89961.0,0.05]
[1765147323103,0.06675,89962.0,89961.0,0.05]
[1765147323617,0.0778649,89962.0,89961.0,0.05]
[1765147324015,0.06675,89962.0,89961.0,0.08385]
[1765147324217,9.291e-05,89967.0,89961.0,0.08385]
[1765147324218,9.291e-05,89967.0,89966.0,0.06566]
[1765147324414,0.03216291,89967.0,89966.0,0.06566]
[1765147324610,0.06684291,89967.0,89966.0,0.06566]
[1765147324810,9.291e-05,89967.0,89966.0,0.06566]
[1765147325005,1e-08,89970.0,89969.0,0.08517]
[1765147325209,0.14572646,89980.0,89969.0,0.01951]
[1765147325523,0.06775,89967.0,89966.0,0.03385]
[1765147325715,0.06775,89967.0,89966.0,0.06566]
[1765147325914,0.001,89967.0,89966.0,0.06566]
[1765147326214,0.00111289,89967.0,89966.0,0.06566]
[1765147326416,0.00016665,89975.0,89974.0,0.0767734]
[1765147326615,0.0431805,89998.0,89997.0,0.03385]
[1765147326817,0.03207,89998.0,89997.0,0.06566]
[1765147327408,0.03215019,89998.0,89997.0,0.06566]
[1765147327609,8.019e-05,89998.0,89997.0,0.06566]
[1765147328109,0.03108019,89998.0,89997.0,0.06666]
[1765147332716,0.00016665,90006.0,89997.0,0.06666]
[1765147332917,0.00016665,90006.0,90005.0,0.0769096]
[1765147333221,0.07897646,90030.0,90023.0,0.0111073]
[1765147334423,0.00016665,90036.0,90023.0,0.0111073]
[1765147334727,0.03856,90030.0,90029.0,0.0658]
[1765147334918,0.006,90030.0,90029.0,0.0658]
[1765147335623,0.0652,90059.0,90027.0,0.0111068]
[1765147335624,0.00027764,90046.0,90045.0,0.0769046]
[1765147336626,0.07897646,90080.0,90067.0,0.0658]
[1765147337719,0.00016631,90082.0,90067.0,0.0658]
[1765147337925,0.07897646,90080.0,90068.0,0.0111018]
[1765147338125,0.0254,90079.0,90068.0,0.0111018]
[1765147338622,0.0344,90079.0,90072.0,0.0111012]
[1765147339125,0.04656,90079.0,90078.0,0.03478]
[1765147339321,0.04556,90079.0,90078.0,0.03478]
[1765147339627,0.07372,90079.0,90078.0,0.03478]
[1765147339833,0.07372,90079.0,90072.0,0.0111012]
[1765147340033,0.06572,90079.0,90072.0,0.0191012]
[1765147340332,0.07472,90079.0,90072.0,0.0201012]
[1765147340632,0.07472,90079.0,90072.0,0.0121012]
[1765147340821,0.09512,90079.0,90072.0,0.0121012]
[1765147342525,0.06572,90073.0,90072.0,0.0548812]
[1765147342727,0.06572,90065.0,90064.0,0.00016655]
[1765147343033,0.06572,90036.0,90035.0,0.0458859]
[1765147343222,0.06572,90036.0,90023.0,0.03975476]
[1765147343223,0.06572,90035.0,90029.0,0.01089921]
[1765147343421,0.06572,90027.0,90018.0,0.08756496]
[1765147343619,0.06572,90022.0,90021.0,0.0111075]
[1765147345532,0.06772,90022.0,90021.0,0.0111075]
[1765147346126,0.06772,90022.0,90021.0,0.0331075]
[1765147347536,0.002,90022.0,90021.0,0.0989075]
[1765147348737,0.002,90022.0,90021.0,0.1069075]
[1765147348927,0.06572,90030.0,90029.0,0.0111065]
[1765147349127,0.06572,90030.0,90029.0,0.0769065]
[1765147349932,0.06572,90030.0,90029.0,0.1009065]
[1765147351231,0.06772,90030.0,90029.0,0.1009065]
[1765147351630,0.06772,90030.0,90029.0,0.0769065]
[1765147351829,0.06572,90030.0,90029.0,0.0999065]
[1765147352038,0.06772,90030.0,90029.0,0.0999065]
[1765147352339,0.06772,90030.0,90029.0,0.0989065]
[1765147353238,0.06772,90030.0,90029.0,0.0331065]
[1765147355830,0.08812,90030.0,90029.0,0.0331065]
[1765147359543,0.08812,90030.0,90029.0,0.0331066]
[1765147360645,0.08812,90030.0,90029.0,0.022]
[1765147361745,0.08812,90030.0,90012.0,0.00016655]
[1765147361746,0.06302,90021.0,90020.0,0.0111077]
[1765147361944,0.06302,90013.0,90012.0,0.01127525]
[1765147362536,0.06302,90013.0,89981.0,0.10000247]
[1765147362537,0.06302,90001.0,90000.0,8.895e-05]
[1765147363652,0.06302,90001.0,90000.0,0.02808895]
[1765147364043,0.06702,90001.0,90000.0,0.02808895]
[1765147364236,0.06702,90001.0,90000.0,0.01536064]
[1765147364437,0.06302,89992.0,89991.0,0.00016665]
[1765147364653,0.0741312,89992.0,89991.0,0.00016665]
[1765147365160,0.06302,89973.0,89972.0,0.0111136]
[1765147365337,0.06302,89967.0,89966.0,0.01139228]
[1765147365541,0.06302,89967.0,89966.0,0.00027788]
[1765147366145,0.0302,89967.0,89966.0,0.06309788]
[1765147366348,0.03028895,89973.0,89972.0,0.06282]
[1765147366550,8.895e-05,89973.0,89972.0,0.06282]
[1765147366743,0.06502,89992.0,89991.0,0.03053]
[1765147366942,0.06502,89992.0,89991.0,0.0416413]
[1765147366943,0.06302,89992.0,89991.0,0.0416413]
[1765147367341,0.06302,89992.0,89991.0,0.0739313]
[1765147367862,0.07402,89992.0,89991.0,0.0749313]
[1765147368539,0.0412,89992.0,89991.0,0.0749313]
[1765147368745,0.011,89992.0,89991.0,0.0749313]
[1765147368954,0.05,89992.0,89991.0,0.0779313]
[1765147369852,0.05,89992.0,89991.0,0.08867818]
[1765147371145,0.00016665,90000.0,89999.0,0.0739303]
[1765147372350,0.011106,90034.0,90023.0,0.06282]
[1765147372663,0.0302,90024.0,90023.0,0.06282]
[1765147372954,0.06302,90024.0,90023.0,0.06282]
[1765147373140,0.01958,90035.0,90012.0,0.0115]
[1765147373451,0.0302,90029.0,90028.0,0.06282]
[1765147374144,0.00016665,90033.0,90032.0,0.06282]
[1765147374540,0.03036665,90033.0,90032.0,0.06282]
[1765147375760,0.06536665,90033.0,90032.0,0.06482]
[1765147376253,0.07636665,90033.0,90032.0,0.06582]
[1765147378356,0.04616665,90033.0,90032.0,0.07673234]
[1765147380359,0.09049,90060.0,90059.0,0.07283]
[1765147380660,0.0361,90060.0,90059.0,0.07283]
[1765147380860,0.07897646,90070.0,90046.0,0.0115]
[1765147381258,0.00016612,90067.0,90049.0,0.00016656]
[1765147381555,0.07091,90061.0,90049.0,0.00016656]
[1765147381759,0.07091,90050.0,90049.0,0.00016656]
[1765147382060,0.07091,90047.0,90046.0,0.016]
[1765147382260,0.07091,90047.0,90046.0,0.019]
[1765147382459,0.07091,90047.0,90046.0,0.003]
[1765147382851,0.07091,90042.0,90041.0,0.0111051]
[1765147383756,0.07091,90033.0,90032.0,0.00016656]
[1765147385248,0.07091,90033.0,90032.0,0.02016656]
[1765147385660,0.07091,90033.0,90032.0,0.00116656]
[1765147385860,0.07091,90033.0,90032.0,0.02116656]
[1765147387464,0.07091,90033.0,90032.0,0.02016656]
[1765147388161,0.07091,90033.0,90032.0,0.01916656]
[1765147388368,0.07091,90033.0,90032.0,0.02216656]
[1765147388966,0.07091,90033.0,90032.0,0.01916656]
[1765147389158,0.07091,90033.0,90032.0,0.02216656]
[1765147394564,0.0820161,90033.0,90032.0,0.02216656]
[1765147394760,0.07091,90033.0,90032.0,0.02216656]
[1765147398867,0.07091,90033.0,90032.0,0.09517656]
[1765147399072,0.07165656,90042.0,90041.0,0.0841151]
[1765147399870,0.03533656,90042.0,90041.0,0.0841151]
[1765147400270,0.00716656,90042.0,90041.0,0.0841151]
[1765147400469,0.00716656,90042.0,90041.0,0.0961151]
[1765147400868,0.00016656,90042.0,90041.0,0.0961151]
[1765147401071,0.00016656,90042.0,90041.0,0.1231151]
[1765147403971,0.07165656,90042.0,90041.0,0.1231151]
[1765147409176,0.03533656,90042.0,90041.0,0.1231151]
[1765147409378,0.00016656,90042.0,90041.0,0.1231151]
[1765147409877,0.0825939,90052.0,90051.0,0.07301]
[1765147411582,0.07149,90052.0,90051.0,0.07301]
[1765147412085,0.07149,90052.0,90051.0,0.10701]
[1765147412469,0.07149,90052.0,90051.0,0.034]
[1765147412878,0.07149,90052.0,90051.0,0.10701]
[1765147413481,0.09219,90057.0,90056.0,0.07301]
[1765147413987,0.07149,90057.0,90056.0,0.0841133]
[1765147414983,0.07149,90057.0,90056.0,0.1151133]
[1765147415379,0.03533612,90061.0,90060.0,0.0841128]
[1765147415983,0.00016612,90061.0,90060.0,0.0841128]
[1765147416487,0.00716612,90061.0,90060.0,0.0961128]
[1765147417088,0.04233612,90061.0,90060.0,0.0961128]
[1765147417287,0.07149,90074.0,90073.0,0.0841111]
[1765147418688,0.08049,90074.0,90073.0,0.0921111]
[1765147421183,0.08049,90074.0,90073.0,0.0191011]
[1765147422291,0.091591,90074.0,90073.0,0.008]
[1765147423801,0.072,90053.0,90052.0,0.07049]
[1765147423990,0.0831038,90052.0,90051.0,0.00016656]
[1765147424294,0.072,90052.0,90051.0,0.00016656]
[1765147424492,0.072,90052.0,90051.0,0.07065656]
[1765147425085,0.072,90052.0,90051.0,0.07365656]
[1765147425284,0.072,90052.0,90051.0,0.10865656]
[1765147425893,0.072,90052.0,90051.0,0.10765656]
[1765147427297,0.072,90052.0,90051.0,0.07065656]
[1765147427500,0.072,90052.0,90051.0,0.10265656]
[1765147427891,0.072,90052.0,90051.0,0.07365656]
[1765147428195,0.072,90063.0,90062.0,0.07049]
[1765147429100,0.09475,90063.0,90062.0,0.07049]
[1765147430402,0.072,90075.0,90074.0,0.07049]
[1765147430802,0.072,90075.0,90074.0,0.081591]
[1765147431689,0.072,90075.0,90074.0,0.109591]
[1765147431894,0.072,90075.0,90074.0,0.111591]
[1765147432405,0.072,90075.0,90074.0,0.06705]
[1765147432605,0.072,90075.0,90074.0,0.078151]
[1765147433105,0.072,90075.0,90074.0,0.06705]
[1765147434305,0.072,90075.0,90074.0,0.03]
[1765147436901,0.072,90075.0,90074.0,0.06332]
[1765147437308,0.072,90075.0,90074.0,0.09554]
[1765147438399,0.0831009,90075.0,90074.0,0.09554]
[1765147440406,0.0483709,90075.0,90074.0,0.09554]
[1765147440705,0.03727,90075.0,90074.0,0.09554]
[1765147441308,0.13221544,90084.0,90074.0,0.09554]
[1765147441309,0.06393,90084.0,90083.0,0.06554]
[1765147441610,0.06393,90084.0,90083.0,0.0766399]
[1765147441911,0.03205,90084.0,90083.0,0.0766399]
[1765147442311,0.06393,90084.0,90083.0,0.0766399]
[1765147442607,0.06593,90084.0,90083.0,0.0766399]
[1765147443609,0.06593,90084.0,90083.0,0.0444199]
[1765147443810,0.06593,90084.0,90083.0,0.0604199]
[1765147444008,0.03405,90084.0,90083.0,0.0926399]
[1765147444209,0.06593,90084.0,90083.0,0.0926399]
[1765147445318,0.06593,90084.0,90083.0,0.016]
[1765147446713,0.06593,90084.0,90083.0,0.08154]
[1765147448013,0.002,90084.0,90083.0,0.08154]
[1765147448618,0.06593,90084.0,90083.0,0.08154]
[1765147449112,0.03405,90084.0,90083.0,0.08154]
[1765147449314,0.002,90084.0,90083.0,0.08154]
[1765147449511,0.03405,90084.0,90083.0,0.08154]
[1765147449904,0.002,90084.0,90083.0,0.08154]
[1765147450820,0.03405,90084.0,90083.0,0.08154]
[1765147451904,0.002,90084.0,90083.0,0.08154]
[1765147453209,0.08595,90099.0,90098.0,0.06309]
[1765147454113,0.0632,90099.0,90098.0,0.06309]
[1765147454514,0.0632,90099.0,90098.0,0.09309]
[1765147455519,0.0632,90099.0,90098.0,0.09609]
[1765147455918,0.0632,90099.0,90098.0,0.06609]
[1765147456109,0.0632,90099.0,90098.0,0.09309]
[1765147456308,0.0632,90099.0,90098.0,0.09609]
[1765147459424,0.0632,90111.0,90110.0,0.06309]
[1765147460019,0.0632,90102.0,90101.0,0.07435416]
[1765147461522,0.0632,90102.0,90101.0,0.07635416]
[1765147462315,0.03197,90113.0,90101.0,0.03116646]
[1765147462520,0.0632,90111.0,90110.0,0.06309]
[1765147463724,0.18825668,90120.0,90119.0,0.0741855]
[1765147463725,0.14723834,90120.0,90119.0,0.0741855]
[1765147464024,0.00027739,90126.0,90125.0,0.06309]
[1765147464025,0.06347739,90126.0,90125.0,0.06309]
[1765147465626,0.07047739,90126.0,90125.0,0.06309]
[1765147466122,0.07047739,90126.0,90125.0,0.06509]
[1765147466517,0.00727739,90126.0,90125.0,0.06509]
[1765147466918,0.03924739,90126.0,90125.0,0.06509]
[1765147467119,0.07047739,90126.0,90125.0,0.06509]
[1765147469623,0.00727739,90126.0,90125.0,0.06509]
[1765147470237,0.07047739,90126.0,90125.0,0.06509]
[1765147471032,0.00727739,90126.0,90125.0,0.06509]
[1765147471818,0.07047739,90126.0,90125.0,0.06509]
[1765147472527,0.0632,90109.0,90108.0,0.03981787]
[1765147472723,0.0632,90102.0,90101.0,0.00016646]
[1765147473728,0.0632,90102.0,90079.0,0.05991198]
[1765147473729,0.0632,90083.0,90082.0,0.06309]
[1765147473933,0.0632,90083.0,90075.0,0.07101288]
[1765147473934,0.0632,90076.0,90075.0,0.0111009]
[1765147474129,0.01926,90081.0,90071.0,0.0111014]
[1765147474130,0.08246,90072.0,90071.0,0.0111014]
[1765147474435,0.0632,90067.0,90066.0,0.044542]
[1765147475525,0.0632,90067.0,90066.0,0.011102]
[1765147475829,0.0632,90067.0,90066.0,0.041102]
[1765147476331,0.0632,90067.0,90066.0,0.039102]
[1765147476535,0.0632,90067.0,90066.0,0.028]
[1765147476729,0.0632,90067.0,90066.0,0.031]
[1765147477434,0.0632,90067.0,90066.0,0.03]
[1765147478339,0.0632,90063.0,90057.0,0.00016646]
[1765147479130,0.0632,90063.0,90058.0,0.0111029]
[1765147479638,0.0632,90063.0,90062.0,0.02511923]
[1765147480130,0.0632,90063.0,90062.0,0.02411923]
[1765147480538,0.0632,90063.0,90062.0,0.02511923]
[1765147480938,0.08246,90063.0,90062.0,0.02511923]
[1765147484830,0.0935624,90063.0,90062.0,0.02511923]
[1765147488437,0.03197,90063.0,90062.0,0.08332923]
[1765147488637,0.06085,90063.0,90062.0,0.08332923]
[1765147492540,0.03197,90063.0,90062.0,0.08332923]
[1765147492753,0.15751306,90072.0,90071.0,0.05821]
[1765147492950,0.07868,90072.0,90071.0,0.05821]
[1765147493640,0.07868,90072.0,90071.0,0.02949]
[1765147493954,0.00016614,90076.0,90075.0,0.0693109]
[1765147494951,0.07883306,90100.0,90075.0,0.0693109]
[1765147494952,0.03054,90100.0,90099.0,0.011098]
[1765147495236,0.05942,90104.0,90103.0,0.0693075]
[1765147495438,0.13825306,90110.0,90109.0,0.0693067]
[1765147495645,0.05942,90110.0,90109.0,0.0693067]
[1765147496349,0.05942,90115.0,90114.0,0.0693061]
[1765147497249,0.05942,90115.0,90114.0,0.0110961]
[1765147497451,0.13482306,90124.0,90123.0,0.068525]
[1765147497663,0.00027739,90126.0,90125.0,0.05743]
[1765147498749,0.00027739,90126.0,90125.0,0.05943]
[1765147498951,0.00027739,90126.0,90125.0,0.06143]
[1765147500854,0.07425739,90126.0,90125.0,0.06143]
[1765147501250,0.07425739,90126.0,90125.0,0.03378]
[1765147501551,0.07425739,90126.0,90125.0,0.06143]
[1765147501754,0.05626739,90126.0,90125.0,0.06143]
[1765147502148,0.07425739,90126.0,90125.0,0.06143]
[1765147505952,0.05626739,90126.0,90125.0,0.06143]
[1765147506343,0.00027739,90126.0,90125.0,0.06143]
[1765147507048,0.02899739,90126.0,90125.0,0.06143]
[1765147507654,0.00027739,90126.0,90125.0,0.06143]
[1765147508158,0.02899739,90126.0,90125.0,0.06143]
[1765147508358,0.05626739,90126.0,90125.0,0.06143]
[1765147508554,0.02899739,90126.0,90125.0,0.06143]
[1765147509559,0.05626739,90126.0,90125.0,0.06143]
[1765147510747,0.00027739,90126.0,90125.0,0.06143]
[1765147512664,0.05766739,90126.0,90125.0,0.06143]
[1765147512965,0.05766739,90126.0,90125.0,0.03278]
[1765147513261,0.05766739,90126.0,90125.0,0.03778]
[1765147513562,0.05766739,90126.0,90125.0,0.03278]
[1765147513763,0.05766739,90126.0,90125.0,0.03778]
[1765147514159,0.05766739,90126.0,90125.0,0.003]
[1765147514664,0.05766739,90126.0,90125.0,0.005]
[1765147516767,0.05676,90114.0,90113.0,0.0404462]
[1765147516962,0.05676,90114.0,90113.0,0.0694162]
[1765147517263,0.05676,90114.0,90113.0,0.0404462]
[1765147517462,0.05676,90114.0,90113.0,0.0110962]
[1765147517964,0.05676,90114.0,90113.0,0.0140962]
[1765147518157,0.05676,90114.0,90113.0,0.003]
[1765147519066,0.05676,90114.0,90113.0,0.0210962]
[1765147519462,0.05676,90114.0,90113.0,0.0130962]
[1765147519663,0.05676,90114.0,90113.0,0.002]
[1765147520161,0.07388,90104.0,90103.0,0.0110974]
[1765147520362,0.05676,90101.0,90100.0,0.00016646]
[1765147522265,0.05676,90101.0,90100.0,0.00516646]
[1765147523071,0.05676,90101.0,90100.0,0.00816646]
[1765147526670,0.05676,90079.0,90078.0,0.0694205]
[1765147526872,0.05676,90079.0,90078.0,0.05832]
[1765147527672,0.05676,90074.0,90073.0,0.06914671]
[1765147527867,0.05676,90071.0,90070.0,0.0404515]
[1765147528073,0.05676,90071.0,90070.0,0.0694215]
[1765147529279,0.05676,90071.0,90070.0,0.0714215]
[1765147529574,0.05676,90071.0,90070.0,0.0754215]
[1765147529974,0.05676,90071.0,90070.0,0.0734215]
[1765147530169,0.05676,90071.0,90070.0,0.06332]
[1765147531171,0.05676,90071.0,90070.0,0.05932]
[1765147531369,0.0391909,90076.0,90075.0,0.05832]
[1765147531567,0.0110975,90103.0,90086.0,0.05832]
[1765147531568,0.0678595,90087.0,90086.0,0.05832]
[1765147532778,0.01728646,90088.0,90087.0,0.0694194]
[1765147532779,0.00016646,90088.0,90087.0,0.0694194]
[1765147533383,0.0849764,90112.0,90111.0,0.05832]
[1765147534179,0.02809,90112.0,90111.0,0.0694165]
[1765147534477,0.05676,90120.0,90119.0,0.05832]
[1765147536078,0.05876,90120.0,90119.0,0.05932]
[1765147538283,0.002,90120.0,90119.0,0.05932]
[1765147544087,0.002,90120.0,90119.0,0.03035]
[1765147544088,0.0872554,90120.0,90119.0,0.03035]
[1765147544280,0.0872554,90120.0,90119.0,0.001]
[1765147569201,0.0872554,90120.0,90119.0,0.05795]
[1765147569393,0.0872554,90120.0,90119.0,0.001]
[1765147569695,0.0685275,90103.0,90102.0,0.00016646]
[1765147570894,0.0685275,90103.0,90102.0,0.00816646]
[1765147571994,0.0685275,90103.0,90102.0,0.00516646]
[1765147572189,0.0835275,90103.0,90102.0,0.00016646]
[1765147573398,0.0855275,90103.0,90102.0,0.00016646]
[1765147573794,0.0110996,90086.0,90084.0,0.05785]
[1765147574000,0.05826,90085.0,90084.0,0.05785]
[1765147575395,0.05826,90085.0,90084.0,0.03055]
[1765147575596,0.05826,90085.0,90084.0,0.03155]
[1765147575798,0.05826,90085.0,90084.0,0.002]
[1765147576204,0.05826,90085.0,90084.0,0.001]
[1765147576907,0.07536,90076.0,90075.0,0.05801646]
[1765147578603,0.07536,90076.0,90075.0,0.05901646]
[1765147578796,0.07536,90076.0,90075.0,0.06101646]
[1765147579499,0.0111006,90078.0,90077.0,0.05785]
[1765147579703,0.0693606,90078.0,90077.0,0.05785]
[1765147580691,0.16810936,90085.0,90078.0,0.0111006]
[1765147580692,0.0693601,90082.0,90078.0,0.0111006]
[1765147580899,0.0693601,90082.0,90081.0,0.05785]
[1765147581102,0.05826,90088.0,90087.0,0.05785]
[1765147582820,0.05826,90088.0,90087.0,0.05885]
[1765147583509,0.05826,90088.0,90087.0,0.05985]
[1765147584298,0.05826,90088.0,90087.0,0.05885]
[1765147584499,0.05826,90088.0,90087.0,0.05985]
[1765147593313,0.05826,90088.0,90087.0,0.0709494]
[1765147593916,0.05826,90088.0,90087.0,0.05985]
[1765147607224,0.02873,90088.0,90087.0,0.05985]
[1765147607419,0.05656,90088.0,90087.0,0.05985]
[1765147616534,0.05656,90088.0,90087.0,0.002]
[1765147617035,0.05656,90088.0,90087.0,0.05729]
[1765147617430,0.05656,90088.0,90087.0,0.02956]
[1765147617939,0.05656,90088.0,90087.0,0.05729]
[1765147619238,0.05656,90088.0,90087.0,0.02956]
[1765147619540,0.05656,90088.0,90087.0,0.002]
[1765147621749,0.05656,90088.0,90087.0,0.02956]
[1765147621950,0.05656,90088.0,90087.0,0.05729]
[1765147622148,0.05656,90088.0,90087.0,0.02956]
[1765147622347,0.05656,90088.0,90087.0,0.002]
[1765147624549,0.0700402,90081.0,90080.0,0.03981787]
[1765147624738,0.05894,90077.0,90076.0,0.08747198]
[1765147624938,0.0700403,90080.0,90079.0,0.05529]
[1765147625748,0.0110993,90088.0,90080.0,0.0111003]
[1765147625951,0.00016646,90094.0,90093.0,0.05529]
[1765147626147,0.02985646,90094.0,90093.0,0.0663887]
[1765147627148,0.00216646,90094.0,90093.0,0.0663887]
[1765147628552,0.0407863,90113.0,90112.0,0.05529]
[1765147628756,0.0110963,90113.0,90112.0,0.05529]
[1765147628946,0.0407863,90113.0,90112.0,0.05529]
[1765147629350,0.05894,90120.0,90108.0,0.01562]
[1765147629649,0.08571585,90122.0,90121.0,0.05529]
[1765147629854,0.02969,90122.0,90121.0,0.05529]
[1765147630250,0.04106199,90126.0,90125.0,0.05529]
[1765147630445,0.07031199,90126.0,90125.0,0.05529]
[1765147632548,0.07831199,90126.0,90125.0,0.05529]
[1765147634048,0.08631199,90126.0,90125.0,0.05529]
[1765147637158,0.01627739,90126.0,90125.0,0.05529]
[1765147638658,0.05846,90146.0,90145.0,0.05683]
[1765147639152,0.0695515,90152.0,90151.0,0.05683]
[1765147639558,0.05846,90152.0,90151.0,0.05683]
[1765147640460,0.02978,90152.0,90151.0,0.05683]
[1765147640760,0.02978,90152.0,90144.0,0.01628]
[1765147640761,0.11448585,90161.0,90160.0,0.05683]
[1765147641063,0.05846,90161.0,90160.0,0.0679205]
[1765147641264,0.05846,90161.0,90160.0,0.05683]
[1765147641462,0.07352585,90180.0,90165.0,0.05683]
[1765147641666,0.08461385,90180.0,90165.0,0.0679198]
[1765147643263,0.08461385,90180.0,90162.0,0.01562]
[1765147643264,0.14307385,90180.0,90179.0,0.05683]
[1765147643470,0.087048,90180.0,90179.0,0.05683]
[1765147644169,0.069548,90180.0,90179.0,0.05683]
[1765147644862,0.077548,90180.0,90179.0,0.05683]
[1765147645267,0.008,90180.0,90179.0,0.05683]
[1765147645657,0.06646,90180.0,90179.0,0.05683]
[1765147646866,0.05846,90180.0,90179.0,0.05683]
[1765147647170,0.06646,90180.0,90179.0,0.05683]
[1765147647463,0.03778,90180.0,90179.0,0.05683]
[1765147647864,0.008,90180.0,90179.0,0.05683]
[1765147650170,0.0110862,90195.0,90194.0,0.05683]
[1765147650171,0.0695462,90195.0,90194.0,0.05683]
[1765147650478,0.05846,90195.0,90194.0,0.05683]
[1765147651366,0.05846,90195.0,90194.0,0.05883]
[1765147651765,0.05846,90202.0,90201.0,0.05683]
[1765147653073,0.05846,90202.0,90201.0,0.05783]
[1765147653971,0.05602585,90210.0,90201.0,0.05783]
[1765147653972,0.03005714,90206.0,90205.0,0.05683]
[1765147654166,0.00027714,90206.0,90205.0,0.05683]
[1765147654466,0.03005714,90206.0,90205.0,0.05683]
[1765147654670,0.05873714,90206.0,90205.0,0.05683]
[1765147655259,0.05873714,90206.0,90205.0,0.0679149]
[1765147655468,0.00027714,90206.0,90205.0,0.0679149]
[1765147656169,0.05602585,90240.0,90205.0,0.0679149]
[1765147656170,0.05846,90223.0,90222.0,0.05683]
[1765147656365,0.02978,90223.0,90222.0,0.05683]
[1765147657271,0.0175,90237.0,90236.0,0.05683]
[1765147657272,0.02978,90237.0,90236.0,0.05683]
[1765147657473,0.05846,90244.0,90243.0,0.05683]
[1765147657669,0.05846,90254.0,90253.0,0.05683]
[1765147659059,0.05846,90241.0,90240.0,0.02939]
[1765147659370,0.07596,90248.0,90247.0,0.05683]
[1765147659573,0.05846,90248.0,90247.0,0.05683]
[1765147660273,0.02978,90248.0,90247.0,0.05683]
[1765147660468,0.07596,90248.0,90247.0,0.05683]
[1765147660672,0.07596,90248.0,90225.0,0.0110824]
[1765147660673,0.0110812,90236.0,90225.0,0.0110824]
[1765147660867,0.05846,90235.0,90215.0,0.0110836]
[1765147661069,0.05846,90235.0,90208.0,0.01628]
[1765147661070,0.05846,90235.0,90214.0,0.0110838]
[1765147661273,0.05846,90215.0,90214.0,0.0385238]
[1765147661474,0.05846,90215.0,90214.0,0.0679138]
[1765147661675,0.05846,90215.0,90214.0,0.02744]
[1765147662385,0.0575,90206.0,90205.0,0.06774116]
[1765147663665,0.0575,90210.0,90209.0,0.05649]
[1765147664571,0.1317173,90230.0,90215.0,0.05649]
[1765147664767,0.05766558,90224.0,90223.0,0.05649]
[1765147665071,0.00016558,90224.0,90223.0,0.05649]
[1765147665776,0.1317173,90250.0,90225.0,0.0270325]
[1765147666072,0.07494,90243.0,90242.0,0.0110804]
[1765147666476,0.07494,90243.0,90242.0,0.0386604]
[1765147666776,0.07494,90243.0,90242.0,0.0110804]
[1765147666974,0.01744,90243.0,90239.0,0.0110807]
[1765147667172,0.0575,90240.0,90239.0,0.0110807]
[1765147667564,0.0575,90234.0,90233.0,0.00016626]
[1765147667767,0.01744,90230.0,90217.0,0.0110834]
[1765147667973,0.0575,90218.0,90217.0,0.0110834]
[1765147668673,0.0575,90214.0,90213.0,0.0110839]
[1765147669082,0.0575,90214.0,90213.0,0.0675739]
[1765147669870,0.0575,90214.0,90213.0,0.0386639]
[1765147670372,0.0575,90214.0,90213.0,0.0745739]
[1765147671471,0.0575,90214.0,90213.0,0.0765739]
[1765147671674,0.0575,90214.0,90213.0,0.0200839]
[1765147672572,0.0575,90214.0,90213.0,0.0476639]
[1765147672783,0.0575,90214.0,90213.0,0.0765739]
[1765147674186,0.0575,90214.0,90213.0,0.0200839]
[1765147677677,0.0575,90214.0,90213.0,0.0476639]
[1765147677870,0.0575,90214.0,90213.0,0.0748439]
[1765147681081,0.0575,90214.0,90213.0,0.009]
[1765147681478,0.0575,90214.0,90204.0,0.00016626]
[1765147681479,0.05704,90205.0,90204.0,0.00016626]
[1765147681785,0.0681249,90205.0,90204.0,0.00016626]